[Event "Titled Tuesday Blitz June 13 Early 2023"]
[White "robertoalejandro10"]
[Black "Priasmoro, Novendra"]
[BlackFideId "7105029"]
[WhiteElo "2606"]
[BlackElo "2412"]
[Result "0-1"]
[Round "11"]
[TimeControl "180+2"]
[Date "2023.06.13"]
[WhiteClock "0:00:16"]
[BlackClock "0:00:56"]
[Board "44"]

1. Nf3 {[%clk 0:03:00]}  Nf6 {[%clk 0:02:59]} 2. c4 {[%clk 0:03:00]}  g6 {[%clk 0:02:58]} 3. b3 {[%clk 0:02:59]}  Bg7 {[%clk 0:02:59]} 4. Bb2 {[%clk 0:02:59]}  O-O {[%clk 0:03:00]} 5. g3 {[%clk 0:02:59]}  c6 {[%clk 0:03:00]} 6. Bg2 {[%clk 0:02:59]}  d5 {[%clk 0:03:01]} 7. O-O {[%clk 0:02:59]}  Bg4 {[%clk 0:03:01]} 8. d3 {[%clk 0:02:59]}  Bxf3 {[%clk 0:02:58]} 9. Bxf3 {[%clk 0:02:59]}  e6 {[%clk 0:02:59]} 10. Nd2 {[%clk 0:02:59]}  Ne8 {[%clk 0:02:59]} 11. Bxg7 {[%clk 0:02:59]}  Nxg7 {[%clk 0:02:58]} 12. Bg2 {[%clk 0:02:57]}  a5 {[%clk 0:02:58]} 13. a3 {[%clk 0:02:57]}  Nd7 {[%clk 0:02:58]} 14. Qc2 {[%clk 0:02:57]}  Nf5 {[%clk 0:02:58]} 15. Nf3 {[%clk 0:02:57]}  Qb6 {[%clk 0:02:58]} 16. Rab1 {[%clk 0:02:55]}  Rfd8 {[%clk 0:02:53]} 17. b4 {[%clk 0:02:49]}  a4 {[%clk 0:02:53]} 18. Rfc1 {[%clk 0:02:45]}  Nd4 {[%clk 0:02:41]} 19. Nxd4 {[%clk 0:02:43]}  Qxd4 {[%clk 0:02:42]} 20. Qb2 {[%clk 0:02:37]}  Qb6 {[%clk 0:02:37]} 21. h4 {[%clk 0:02:29]}  h5 {[%clk 0:02:36]} 22. Bf3 {[%clk 0:02:29]}  Rac8 {[%clk 0:02:21]} 23. Kg2 {[%clk 0:02:29]}  Qa7 {[%clk 0:02:12]} 24. g4 {[%clk 0:02:11]}  hxg4 {[%clk 0:02:11]} 25. Bxg4 {[%clk 0:02:12]}  d4 {[%clk 0:02:11]} 26. Qd2 {[%clk 0:02:09]}  Qb8 {[%clk 0:01:58]} 27. Qg5 {[%clk 0:02:02]}  Qe5 {[%clk 0:01:57]} 28. Qxe5 {[%clk 0:02:02]}  Nxe5 {[%clk 0:01:58]} 29. Bf3 {[%clk 0:02:02]}  Kg7 {[%clk 0:01:53]} 30. Rh1 {[%clk 0:02:00]}  Rh8 {[%clk 0:01:53]} 31. c5 {[%clk 0:01:56]}  Rh6 {[%clk 0:01:52]} 32. b5 {[%clk 0:01:55]}  Nxf3 {[%clk 0:01:25]} 33. Kxf3 {[%clk 0:01:54]}  Rh5 {[%clk 0:01:26]} 34. bxc6 {[%clk 0:01:27]}  bxc6 {[%clk 0:01:27]} 35. Rb4 {[%clk 0:01:20]}  Ra8 {[%clk 0:01:27]} 36. Rc4 {[%clk 0:01:10]}  e5 {[%clk 0:01:24]} 37. Rb4 {[%clk 0:01:08]}  Ra5 {[%clk 0:01:24]} 38. Rc1 {[%clk 0:01:04]}  Rxh4 {[%clk 0:01:23]} 39. Rb6 {[%clk 0:01:04]}  Rf4+ {[%clk 0:01:22]} 40. Kg2 {[%clk 0:01:01]}  Rf6 {[%clk 0:01:22]} 41. Rc4 {[%clk 0:00:56]}  Re6 {[%clk 0:01:22]} 42. Rbb4 {[%clk 0:00:56]}  Re8 {[%clk 0:01:11]} 43. Rxa4 {[%clk 0:00:56]}  Rea8 {[%clk 0:01:11]} 44. Rxa5 {[%clk 0:00:32]}  Rxa5 {[%clk 0:01:11]} 45. a4 {[%clk 0:00:33]}  Kf6 {[%clk 0:01:12]} 46. Kf3 {[%clk 0:00:34]}  Ke6 {[%clk 0:01:12]} 47. e3 {[%clk 0:00:34]}  dxe3 {[%clk 0:00:56]} 48. fxe3 {[%clk 0:00:35]}  f5 {[%clk 0:00:57]} 49. e4 {[%clk 0:00:19]}  Kf6 {[%clk 0:00:54]} 50. exf5 {[%clk 0:00:10]}  gxf5 {[%clk 0:00:55]} 51. Ke3 {[%clk 0:00:11]}  Ke6 {[%clk 0:00:53]} 52. Rh4 {[%clk 0:00:07]}  Rxc5 {[%clk 0:00:52]} 53. Rh6+ {[%clk 0:00:08]}  Kd5 {[%clk 0:00:53]} 54. Rh5 {[%clk 0:00:08]}  f4+ {[%clk 0:00:53]} 55. Kd2 {[%clk 0:00:08]}  Ra5 {[%clk 0:00:53]} 56. Rh8 {[%clk 0:00:08]}  Rxa4 {[%clk 0:00:54]} 57. Rd8+ {[%clk 0:00:09]}  Ke6 {[%clk 0:00:54]} 58. Kc3 {[%clk 0:00:10]}  f3 {[%clk 0:00:47]} 59. Rf8 {[%clk 0:00:09]}  Rf4 {[%clk 0:00:47]} 60. Rxf4 {[%clk 0:00:08]}  exf4 {[%clk 0:00:48]} 61. Kd2 {[%clk 0:00:09]}  Ke5 {[%clk 0:00:47]} 62. Ke1 {[%clk 0:00:09]}  Kd4 {[%clk 0:00:48]} 63. Kf2 {[%clk 0:00:10]}  Kxd3 {[%clk 0:00:49]} 64. Kxf3 {[%clk 0:00:11]}  c5 {[%clk 0:00:50]} 65. Kxf4 {[%clk 0:00:12]}  c4 {[%clk 0:00:51]} 66. Kf3 {[%clk 0:00:13]}  c3 {[%clk 0:00:52]} 67. Kf2 {[%clk 0:00:14]}  c2 {[%clk 0:00:52]} 68. Ke1 {[%clk 0:00:15]}  c1=Q+ {[%clk 0:00:53]} 69. Kf2 {[%clk 0:00:16]}  Qf4+ {[%clk 0:00:54]} 70. Kg2 {[%clk 0:00:16]}  Ke2 {[%clk 0:00:55]} 71. Kh3 {[%clk 0:00:17]}  Qg5 {[%clk 0:00:55]} 72. Kh2 {[%clk 0:00:16]}  Kf2 {[%clk 0:00:56]} 0-1


[Site "https://www.chess.com"]

[Event "Titled Tuesday Blitz June 13 Early 2023"]
[White "Turzo, Attila"]
[Black "Ashraf, Artin"]
[WhiteFideId "704954"]
[BlackFideId "22514805"]
[WhiteElo "2522"]
[BlackElo "2224"]
[Result "1-0"]
[Round "11"]
[TimeControl "180+2"]
[Date "2023.06.13"]
[WhiteClock "0:00:16"]
[BlackClock "0:00:00"]
[Board "51"]

1. d4 {[%clk 0:02:56]}  d5 {[%clk 0:02:39]} 2. c4 {[%clk 0:02:57]}  Nc6 {[%clk 0:02:38]} 3. Nf3 {[%clk 0:02:54]}  e6 {[%clk 0:02:20]} 4. g3 {[%clk 0:02:48]}  Nf6 {[%clk 0:02:18]} 5. Bg2 {[%clk 0:02:48]}  dxc4 {[%clk 0:02:09]} 6. O-O {[%clk 0:02:41]}  Rb8 {[%clk 0:02:06]} 7. a4 {[%clk 0:02:38]}  a6 {[%clk 0:01:57]} 8. a5 {[%clk 0:02:37]}  b5 {[%clk 0:01:44]} 9. axb6 {[%clk 0:02:34]}  cxb6 {[%clk 0:01:44]} 10. b3 {[%clk 0:02:24]}  cxb3 {[%clk 0:01:38]} 11. Qxb3 {[%clk 0:02:24]}  Bb7 {[%clk 0:01:34]} 12. Rd1 {[%clk 0:02:16]}  Na5 {[%clk 0:01:31]} 13. Qa4+ {[%clk 0:02:11]}  Bc6 {[%clk 0:01:29]} 14. Qc2 {[%clk 0:02:04]}  Be4 {[%clk 0:01:24]} 15. Qa4+ {[%clk 0:02:00]}  Qd7 {[%clk 0:01:19]} 16. Qa2 {[%clk 0:01:44]}  Bd5 {[%clk 0:01:10]} 17. Qb2 {[%clk 0:01:40]}  Nc4 {[%clk 0:00:43]} 18. Qc3 {[%clk 0:01:29]}  Rc8 {[%clk 0:00:25]} 19. Rxa6 {[%clk 0:01:17]}  Qb5 {[%clk 0:00:20]} 20. Qa1 {[%clk 0:01:14]}  Bb4 {[%clk 0:00:15]} 21. Qa4 {[%clk 0:01:03]}  Bc6 {[%clk 0:00:07]} 22. Qa1 {[%clk 0:00:52]}  Na5 {[%clk 0:00:02]} 23. Ra7 {[%clk 0:00:50]}  O-O {[%clk 0:00:02]} 24. Na3 {[%clk 0:00:40]}  Qxe2 {[%clk 0:00:02]} 25. Bd2 {[%clk 0:00:25]}  Bxf3 {[%clk 0:00:02]} 26. Bxf3 {[%clk 0:00:23]}  Qxf3 {[%clk 0:00:03]} 27. Bxb4 {[%clk 0:00:24]}  Nb3 {[%clk 0:00:03]} 28. Qb1 {[%clk 0:00:20]}  Ng4 {[%clk 0:00:02]} 29. Be1 {[%clk 0:00:18]}  Rfd8 {[%clk 0:00:00]} 30. Rd3 {[%clk 0:00:16]} 1-0


[Site "https://www.chess.com"]

[Event "Titled Tuesday Blitz June 13 Early 2023"]
[White "Sadykov, Ramil"]
[Black "Palczert, Matyas"]
[WhiteFideId "24113590"]
[BlackFideId "784958"]
[WhiteElo "2245"]
[BlackElo "2224"]
[Result "0-1"]
[Round "11"]
[TimeControl "180+2"]
[Date "2023.06.13"]
[WhiteClock "0:00:00"]
[BlackClock "0:00:12"]
[Board "52"]

1. Nf3 {[%clk 0:03:00]}  c5 {[%clk 0:02:58]} 2. g3 {[%clk 0:02:59]}  Nc6 {[%clk 0:02:56]} 3. Bg2 {[%clk 0:02:58]}  d5 {[%clk 0:02:51]} 4. d4 {[%clk 0:02:56]}  cxd4 {[%clk 0:02:50]} 5. Nxd4 {[%clk 0:02:57]}  e5 {[%clk 0:02:49]} 6. Nxc6 {[%clk 0:02:57]}  bxc6 {[%clk 0:02:48]} 7. c4 {[%clk 0:02:58]}  Nf6 {[%clk 0:02:48]} 8. Nc3 {[%clk 0:02:56]}  Be6 {[%clk 0:02:47]} 9. cxd5 {[%clk 0:02:47]}  cxd5 {[%clk 0:02:45]} 10. Bg5 {[%clk 0:02:48]}  e4 {[%clk 0:02:34]} 11. Bxf6 {[%clk 0:02:39]}  gxf6 {[%clk 0:02:08]} 12. Qa4+ {[%clk 0:02:38]}  Qd7 {[%clk 0:02:01]} 13. Qxd7+ {[%clk 0:02:32]}  Kxd7 {[%clk 0:02:01]} 14. Rd1 {[%clk 0:02:33]}  Bb4 {[%clk 0:02:00]} 15. Bxe4 {[%clk 0:02:29]}  Bxc3+ {[%clk 0:01:42]} 16. bxc3 {[%clk 0:02:27]}  Kc6 {[%clk 0:01:42]} 17. Bf3 {[%clk 0:02:27]}  Kc5 {[%clk 0:01:42]} 18. Rb1 {[%clk 0:02:17]}  Rab8 {[%clk 0:01:37]} 19. Kd2 {[%clk 0:02:17]}  Bf5 {[%clk 0:01:37]} 20. Rb3 {[%clk 0:02:01]}  a5 {[%clk 0:01:27]} 21. Rd1 {[%clk 0:01:37]}  a4 {[%clk 0:01:22]} 22. Rb4 {[%clk 0:01:37]}  Rxb4 {[%clk 0:01:14]} 23. cxb4+ {[%clk 0:01:37]}  Kxb4 {[%clk 0:01:14]} 24. Bxd5 {[%clk 0:01:29]}  Rd8 {[%clk 0:01:07]} 25. Ke1 {[%clk 0:00:59]}  Bc2 {[%clk 0:00:52]} 26. Rd2 {[%clk 0:00:48]}  Kc3 {[%clk 0:00:50]} 27. f3 {[%clk 0:00:31]}  a3 {[%clk 0:00:49]} 28. e4 {[%clk 0:00:25]}  Bb1 {[%clk 0:00:24]} 29. g4 {[%clk 0:00:22]}  Rb8 {[%clk 0:00:20]} 30. Bxf7 {[%clk 0:00:15]}  Rb2 {[%clk 0:00:19]} 31. Rd6 {[%clk 0:00:13]}  Bxa2 {[%clk 0:00:19]} 32. Bxa2 {[%clk 0:00:12]}  Rxa2 {[%clk 0:00:19]} 33. Rxf6 {[%clk 0:00:12]}  Rxh2 {[%clk 0:00:18]} 34. Ra6 {[%clk 0:00:07]}  a2 {[%clk 0:00:18]} 35. g5 {[%clk 0:00:05]}  Rh1+ {[%clk 0:00:18]} 36. Kf2 {[%clk 0:00:05]}  a1=Q {[%clk 0:00:17]} 37. Rxa1 {[%clk 0:00:06]}  Rxa1 {[%clk 0:00:18]} 38. Ke3 {[%clk 0:00:06]}  Re1+ {[%clk 0:00:18]} 39. Kf4 {[%clk 0:00:06]}  Kd4 {[%clk 0:00:17]} 40. Kf5 {[%clk 0:00:06]}  Rf1 {[%clk 0:00:14]} 41. f4 {[%clk 0:00:04]}  Ke3 {[%clk 0:00:13]} 42. g6 {[%clk 0:00:01]}  hxg6+ {[%clk 0:00:12]} 43. Kxg6 {[%clk 0:00:01]}  Kxe4 {[%clk 0:00:12]} 44. f5 {[%clk 0:00:00]}  Rxf5 {[%clk 0:00:12]} 0-1


[Site "https://www.chess.com"]

[Event "Titled Tuesday Blitz June 13 Early 2023"]
[White "Hayrapetyan, Hovik"]
[Black "ATM622"]
[WhiteFideId "13302639"]
[WhiteElo "2348"]
[BlackElo "2581"]
[Result "0-1"]
[Round "11"]
[TimeControl "180+2"]
[Date "2023.06.13"]
[WhiteClock "0:00:27"]
[BlackClock "0:02:04"]
[Board "58"]

1. d4 {[%clk 0:03:00]}  Nf6 {[%clk 0:02:58]} 2. c4 {[%clk 0:03:00]}  e6 {[%clk 0:02:58]} 3. Nc3 {[%clk 0:03:01]}  Bb4 {[%clk 0:02:57]} 4. Nf3 {[%clk 0:03:01]}  d5 {[%clk 0:02:56]} 5. Qa4+ {[%clk 0:03:00]}  Nc6 {[%clk 0:02:56]} 6. a3 {[%clk 0:02:59]}  Bxc3+ {[%clk 0:02:55]} 7. bxc3 {[%clk 0:03:00]}  O-O {[%clk 0:02:55]} 8. Bg5 {[%clk 0:02:59]}  h6 {[%clk 0:02:53]} 9. Bh4 {[%clk 0:02:59]}  Bd7 {[%clk 0:02:53]} 10. cxd5 {[%clk 0:02:59]}  exd5 {[%clk 0:02:50]} 11. e3 {[%clk 0:02:55]}  Re8 {[%clk 0:02:48]} 12. Qc2 {[%clk 0:02:53]}  Na5 {[%clk 0:02:46]} 13. Ne5 {[%clk 0:02:53]}  Be6 {[%clk 0:02:44]} 14. Bd3 {[%clk 0:02:32]}  c5 {[%clk 0:02:40]} 15. O-O {[%clk 0:02:27]}  Rc8 {[%clk 0:02:36]} 16. f4 {[%clk 0:02:26]}  cxd4 {[%clk 0:02:32]} 17. exd4 {[%clk 0:02:27]}  Qc7 {[%clk 0:02:29]} 18. f5 {[%clk 0:02:19]}  Bd7 {[%clk 0:02:28]} 19. Bxf6 {[%clk 0:02:16]}  gxf6 {[%clk 0:02:29]} 20. Ng4 {[%clk 0:02:16]}  Kg7 {[%clk 0:02:27]} 21. Rac1 {[%clk 0:01:39]}  h5 {[%clk 0:02:24]} 22. Nf2 {[%clk 0:01:39]}  Nc4 {[%clk 0:02:20]} 23. Bxc4 {[%clk 0:01:22]}  Qxc4 {[%clk 0:02:21]} 24. Nh3 {[%clk 0:01:20]}  Re2 {[%clk 0:02:19]} 25. Qd1 {[%clk 0:01:18]}  Ba4 {[%clk 0:02:12]} 26. Qxe2 {[%clk 0:00:52]}  Qxe2 {[%clk 0:02:12]} 27. Rce1 {[%clk 0:00:49]}  Qd2 {[%clk 0:02:07]} 28. Nf4 {[%clk 0:00:27]}  Kh6 {[%clk 0:02:04]} 0-1


[Site "https://www.chess.com"]

[Event "Titled Tuesday Blitz June 13 Early 2023"]
[White "Arencibia Monduy, Antonio"]
[Black "Starozhilov, Leonid"]
[WhiteFideId "3507939"]
[BlackFideId "14106752"]
[WhiteElo "2561"]
[BlackElo "2352"]
[Result "1-0"]
[Round "11"]
[TimeControl "180+2"]
[Date "2023.06.13"]
[WhiteClock "0:00:05"]
[BlackClock "0:00:00"]
[Board "60"]

1. e4 {[%clk 0:03:00]}  g6 {[%clk 0:02:56]} 2. Nf3 {[%clk 0:03:00]}  Bg7 {[%clk 0:02:56]} 3. d4 {[%clk 0:03:00]}  d6 {[%clk 0:02:57]} 4. h3 {[%clk 0:02:57]}  Nf6 {[%clk 0:02:55]} 5. Bd3 {[%clk 0:02:57]}  O-O {[%clk 0:02:55]} 6. O-O {[%clk 0:02:57]}  Nc6 {[%clk 0:02:51]} 7. Re1 {[%clk 0:02:48]}  e5 {[%clk 0:02:49]} 8. c3 {[%clk 0:02:47]}  Re8 {[%clk 0:02:45]} 9. Bg5 {[%clk 0:02:18]}  h6 {[%clk 0:02:42]} 10. Bc1 {[%clk 0:02:00]}  Bd7 {[%clk 0:02:32]} 11. d5 {[%clk 0:01:54]}  Ne7 {[%clk 0:02:31]} 12. c4 {[%clk 0:01:54]}  Rf8 {[%clk 0:02:25]} 13. Nc3 {[%clk 0:01:55]}  Nh7 {[%clk 0:02:19]} 14. Nh2 {[%clk 0:01:22]}  f5 {[%clk 0:02:18]} 15. f3 {[%clk 0:01:22]}  h5 {[%clk 0:02:08]} 16. exf5 {[%clk 0:01:08]}  gxf5 {[%clk 0:02:06]} 17. f4 {[%clk 0:01:08]}  e4 {[%clk 0:02:05]} 18. Be2 {[%clk 0:01:08]}  h4 {[%clk 0:01:57]} 19. Be3 {[%clk 0:01:04]}  Ng6 {[%clk 0:01:43]} 20. Kh1 {[%clk 0:01:02]}  Kh8 {[%clk 0:01:39]} 21. Rg1 {[%clk 0:01:01]}  Bf6 {[%clk 0:01:26]} 22. Qd2 {[%clk 0:00:39]}  Qe7 {[%clk 0:01:24]} 23. Nf1 {[%clk 0:00:31]}  Rg8 {[%clk 0:01:21]} 24. Bh5 {[%clk 0:00:29]}  Rg7 {[%clk 0:01:19]} 25. Ne2 {[%clk 0:00:24]}  Rag8 {[%clk 0:01:14]} 26. Nd4 {[%clk 0:00:24]}  a6 {[%clk 0:00:53]} 27. a4 {[%clk 0:00:21]}  Ngf8 {[%clk 0:00:53]} 28. Rd1 {[%clk 0:00:17]}  Qd8 {[%clk 0:00:38]} 29. b3 {[%clk 0:00:17]}  Ng6 {[%clk 0:00:38]} 30. Bxg6 {[%clk 0:00:17]}  Rxg6 {[%clk 0:00:38]} 31. Bf2 {[%clk 0:00:12]}  Qe7 {[%clk 0:00:37]} 32. Ne3 {[%clk 0:00:11]}  Bxd4 {[%clk 0:00:19]} 33. Qxd4+ {[%clk 0:00:10]}  Qf6 {[%clk 0:00:19]} 34. Qxf6+ {[%clk 0:00:10]}  Nxf6 {[%clk 0:00:20]} 35. Bxh4 {[%clk 0:00:07]}  Nh5 {[%clk 0:00:21]} 36. Bg5 {[%clk 0:00:07]}  Rxg5 {[%clk 0:00:21]} 37. fxg5 {[%clk 0:00:07]}  f4 {[%clk 0:00:17]} 38. Ng4 {[%clk 0:00:06]}  Rxg5 {[%clk 0:00:16]} 39. Nf2 {[%clk 0:00:06]}  Ng3+ {[%clk 0:00:14]} 40. Kh2 {[%clk 0:00:05]}  Re5 {[%clk 0:00:10]} 41. Rde1 {[%clk 0:00:06]}  Kg7 {[%clk 0:00:09]} 42. Nh1 {[%clk 0:00:04]}  Nh5 {[%clk 0:00:08]} 43. g4 {[%clk 0:00:04]}  Nf6 {[%clk 0:00:07]} 44. Nf2 {[%clk 0:00:04]}  f3 {[%clk 0:00:04]} 45. g5 {[%clk 0:00:04]}  Nh5 {[%clk 0:00:05]} 46. h4 {[%clk 0:00:03]}  Bf5 {[%clk 0:00:04]} 47. Nh3 {[%clk 0:00:03]}  Bxh3 {[%clk 0:00:04]} 48. Kxh3 {[%clk 0:00:03]}  Nf4+ {[%clk 0:00:03]} 49. Kg4 {[%clk 0:00:03]}  Nd3 {[%clk 0:00:04]} 50. Ref1 {[%clk 0:00:02]}  Nc5 {[%clk 0:00:03]} 51. h5 {[%clk 0:00:03]}  Nxb3 {[%clk 0:00:03]} 52. h6+ {[%clk 0:00:03]}  Kh7 {[%clk 0:00:03]} 53. Kf4 {[%clk 0:00:04]}  Nd4 {[%clk 0:00:03]} 54. g6+ {[%clk 0:00:04]}  Kxh6 {[%clk 0:00:02]} 55. g7 {[%clk 0:00:05]}  Ne2+ {[%clk 0:00:03]} 56. Ke3 {[%clk 0:00:05]}  Nxg1 {[%clk 0:00:00]} 57. g8=Q {[%clk 0:00:05]} 1-0


[Site "https://www.chess.com"]

[Event "Titled Tuesday Blitz June 13 Early 2023"]
[White "Rakotomaharo, Fy Antenaina"]
[Black "Garakov, Mikhael"]
[WhiteFideId "13100050"]
[BlackFideId "4169034"]
[WhiteElo "2427"]
[BlackElo "2347"]
[Result "1-0"]
[Round "11"]
[TimeControl "180+2"]
[Date "2023.06.13"]
[WhiteClock "0:00:05"]
[BlackClock "0:00:00"]
[Board "62"]

1. d4 {[%clk 0:03:00]}  c5 {[%clk 0:02:59]} 2. d5 {[%clk 0:03:00]}  g6 {[%clk 0:02:59]} 3. e4 {[%clk 0:03:00]}  Bg7 {[%clk 0:03:00]} 4. Nc3 {[%clk 0:02:59]}  d6 {[%clk 0:03:00]} 5. Bb5+ {[%clk 0:03:00]}  Bd7 {[%clk 0:02:59]} 6. a4 {[%clk 0:03:00]}  Nf6 {[%clk 0:03:00]} 7. Nf3 {[%clk 0:03:00]}  Bxb5 {[%clk 0:03:01]} 8. axb5 {[%clk 0:03:00]}  O-O {[%clk 0:03:01]} 9. O-O {[%clk 0:03:00]}  Nbd7 {[%clk 0:03:01]} 10. Re1 {[%clk 0:02:57]}  Ne8 {[%clk 0:03:01]} 11. Nd2 {[%clk 0:02:56]}  Nb6 {[%clk 0:02:59]} 12. Nb3 {[%clk 0:02:50]}  Nc7 {[%clk 0:02:58]} 13. Na5 {[%clk 0:02:44]}  Rb8 {[%clk 0:02:56]} 14. Bg5 {[%clk 0:02:42]}  Re8 {[%clk 0:02:53]} 15. Qd2 {[%clk 0:02:41]}  Qd7 {[%clk 0:02:48]} 16. Qd3 {[%clk 0:02:34]}  a6 {[%clk 0:01:46]} 17. bxa6 {[%clk 0:02:03]}  Nxa6 {[%clk 0:01:47]} 18. Nc6 {[%clk 0:01:31]}  bxc6 {[%clk 0:01:37]} 19. dxc6 {[%clk 0:01:29]}  Qxc6 {[%clk 0:01:32]} 20. Rxa6 {[%clk 0:01:26]}  c4 {[%clk 0:01:29]} 21. Qe3 {[%clk 0:01:24]}  Qb7 {[%clk 0:01:28]} 22. Rea1 {[%clk 0:01:23]}  Nd7 {[%clk 0:01:27]} 23. R1a2 {[%clk 0:01:14]}  Bxc3 {[%clk 0:00:38]} 24. Ra7 {[%clk 0:01:02]}  Qb4 {[%clk 0:00:24]} 25. bxc3 {[%clk 0:00:30]}  Qb1+ {[%clk 0:00:22]} 26. Qc1 {[%clk 0:00:30]}  Qxc1+ {[%clk 0:00:20]} 27. Bxc1 {[%clk 0:00:31]}  Nc5 {[%clk 0:00:20]} 28. f3 {[%clk 0:00:29]}  Rb1 {[%clk 0:00:19]} 29. Ra1 {[%clk 0:00:29]}  Reb8 {[%clk 0:00:19]} 30. Kf2 {[%clk 0:00:26]}  Kg7 {[%clk 0:00:19]} 31. Be3 {[%clk 0:00:25]}  Ne6 {[%clk 0:00:18]} 32. Ke2 {[%clk 0:00:19]}  Rxa1 {[%clk 0:00:15]} 33. Rxa1 {[%clk 0:00:18]}  Rb2 {[%clk 0:00:15]} 34. Kd2 {[%clk 0:00:18]}  f5 {[%clk 0:00:16]} 35. exf5 {[%clk 0:00:16]}  gxf5 {[%clk 0:00:16]} 36. g4 {[%clk 0:00:11]}  fxg4 {[%clk 0:00:15]} 37. fxg4 {[%clk 0:00:12]}  Kf6 {[%clk 0:00:15]} 38. h4 {[%clk 0:00:09]}  Ke5 {[%clk 0:00:14]} 39. Rf1 {[%clk 0:00:09]}  Nc7 {[%clk 0:00:12]} 40. Rf5+ {[%clk 0:00:08]}  Ke6 {[%clk 0:00:12]} 41. Rh5 {[%clk 0:00:07]}  Nd5 {[%clk 0:00:12]} 42. Bd4 {[%clk 0:00:07]}  Rb1 {[%clk 0:00:11]} 43. Rh6+ {[%clk 0:00:07]}  Kd7 {[%clk 0:00:10]} 44. Rxh7 {[%clk 0:00:07]}  Rh1 {[%clk 0:00:10]} 45. g5 {[%clk 0:00:06]}  Rh2+ {[%clk 0:00:09]} 46. Kc1 {[%clk 0:00:06]}  Nf4 {[%clk 0:00:08]} 47. Kb1 {[%clk 0:00:05]}  Kc6 {[%clk 0:00:08]} 48. Rxe7 {[%clk 0:00:04]}  Rxh4 {[%clk 0:00:07]} 49. Rf7 {[%clk 0:00:04]}  Ne6 {[%clk 0:00:05]} 50. Bf6 {[%clk 0:00:04]}  Rg4 {[%clk 0:00:05]} 51. Re7 {[%clk 0:00:05]}  Nc5 {[%clk 0:00:05]} 52. Re8 {[%clk 0:00:04]}  d5 {[%clk 0:00:04]} 53. Kb2 {[%clk 0:00:04]}  Rg3 {[%clk 0:00:02]} 54. Ka3 {[%clk 0:00:04]}  Ne4 {[%clk 0:00:02]} 55. Kb4 {[%clk 0:00:04]}  Nxf6 {[%clk 0:00:01]} 56. gxf6 {[%clk 0:00:05]}  Rf3 {[%clk 0:00:02]} 57. Re6+ {[%clk 0:00:04]}  Kd7 {[%clk 0:00:02]} 58. Ra6 {[%clk 0:00:05]}  Rf5 {[%clk 0:00:01]} 59. Kc5 {[%clk 0:00:05]}  Kc7 {[%clk 0:00:00]} 60. f7 {[%clk 0:00:05]} 1-0


[Site "https://www.chess.com"]

[Event "Titled Tuesday Blitz June 13 Early 2023"]
[White "Papasimakopoulos, Alexandros"]
[Black "Mamedov, Edgar"]
[WhiteFideId "4244125"]
[BlackFideId "13739980"]
[WhiteElo "2359"]
[BlackElo "2317"]
[Result "1-0"]
[Round "11"]
[TimeControl "180+2"]
[Date "2023.06.13"]
[WhiteClock "0:00:06"]
[BlackClock "0:00:01"]
[Board "63"]

1. f4 {[%clk 0:02:56]}  Nf6 {[%clk 0:02:53]} 2. Nf3 {[%clk 0:02:56]}  g6 {[%clk 0:02:53]} 3. b3 {[%clk 0:02:56]}  Bg7 {[%clk 0:02:53]} 4. Bb2 {[%clk 0:02:57]}  O-O {[%clk 0:02:53]} 5. g3 {[%clk 0:02:56]}  d6 {[%clk 0:02:53]} 6. Bg2 {[%clk 0:02:56]}  Nbd7 {[%clk 0:02:53]} 7. O-O {[%clk 0:02:57]}  e5 {[%clk 0:02:53]} 8. fxe5 {[%clk 0:02:56]}  dxe5 {[%clk 0:02:52]} 9. Nxe5 {[%clk 0:02:51]}  Ng4 {[%clk 0:02:51]} 10. Nc4 {[%clk 0:02:50]}  Bxb2 {[%clk 0:02:48]} 11. Nxb2 {[%clk 0:02:51]}  Nde5 {[%clk 0:02:44]} 12. e3 {[%clk 0:02:47]}  Qg5 {[%clk 0:02:34]} 13. Nc3 {[%clk 0:02:38]}  Nxh2 {[%clk 0:02:02]} 14. Kxh2 {[%clk 0:02:28]}  Ng4+ {[%clk 0:02:01]} 15. Kg1 {[%clk 0:02:29]}  Qh6 {[%clk 0:01:57]} 16. Rf3 {[%clk 0:02:16]}  Bd7 {[%clk 0:01:56]} 17. Nd3 {[%clk 0:02:06]}  Bc6 {[%clk 0:01:51]} 18. e4 {[%clk 0:02:06]}  f5 {[%clk 0:01:44]} 19. e5 {[%clk 0:01:55]}  Bxf3 {[%clk 0:01:35]} 20. Qxf3 {[%clk 0:01:54]}  Qxd2 {[%clk 0:01:34]} 21. Nd5 {[%clk 0:01:47]}  c6 {[%clk 0:01:33]} 22. N5f4 {[%clk 0:01:34]}  Qc3 {[%clk 0:01:29]} 23. Re1 {[%clk 0:01:32]}  Qxc2 {[%clk 0:01:15]} 24. e6 {[%clk 0:01:19]}  Rae8 {[%clk 0:01:13]} 25. Bh3 {[%clk 0:01:13]}  Qh2+ {[%clk 0:01:09]} 26. Kf1 {[%clk 0:01:13]}  g5 {[%clk 0:01:02]} 27. Bxg4 {[%clk 0:01:11]}  gxf4 {[%clk 0:00:56]} 28. Bh5 {[%clk 0:01:06]}  Qh3+ {[%clk 0:00:49]} 29. Kg1 {[%clk 0:00:51]}  fxg3 {[%clk 0:00:38]} 30. Bxe8 {[%clk 0:00:50]}  Rxe8 {[%clk 0:00:27]} 31. Nf4 {[%clk 0:00:48]}  Qh4 {[%clk 0:00:24]} 32. Re5 {[%clk 0:00:29]}  Rd8 {[%clk 0:00:20]} 33. Re1 {[%clk 0:00:14]}  Rd2 {[%clk 0:00:18]} 34. Ne2 {[%clk 0:00:13]}  Qh2+ {[%clk 0:00:16]} 35. Kf1 {[%clk 0:00:14]}  f4 {[%clk 0:00:16]} 36. e7 {[%clk 0:00:12]}  Qh3+ {[%clk 0:00:10]} 37. Qg2 {[%clk 0:00:11]}  Qh5 {[%clk 0:00:09]} 38. Nxf4 {[%clk 0:00:09]}  Rf2+ {[%clk 0:00:09]} 39. Qxf2 {[%clk 0:00:09]}  Qh1+ {[%clk 0:00:09]} 40. Ke2 {[%clk 0:00:07]}  Qe4+ {[%clk 0:00:08]} 41. Kd2 {[%clk 0:00:08]}  gxf2 {[%clk 0:00:01]} 42. e8=Q+ {[%clk 0:00:06]} 1-0


[Site "https://www.chess.com"]